bitfinex-derivatives/quotes_SOLF0:USTF0_20250318
["timestamp","ask_amount","ask_price","bid_price","bid_amount"]
[1742297281722,8.0456,124.3,124.29,0.05888415]
[1742297283721,8.0456,124.3,124.29,13.40490705]
[1742297284728,28.73400667,124.32,124.29,13.40490705]
[1742297284924,28.73400667,124.32,124.3,13.3460229]
[1742297285122,0.05400667,124.32,124.3,13.3460229]
[1742297286026,8.09840667,124.32,124.3,13.3460229]
[1742297286228,0.05400667,124.32,124.3,13.3460229]
[1742297287832,8.09840667,124.32,124.3,13.3460229]
[1742297288329,0.05400667,124.32,124.3,13.3460229]
[1742297289332,0.05400667,124.32,124.3,21.3914229]
[1742297290027,0.05400667,124.32,124.31,8.045]
[1742297292236,0.05400667,124.32,124.31,21.3910229]
[1742297292731,0.05400667,124.32,124.3,21.3913229]
[1742297292929,8.09850667,124.32,124.3,21.3913229]
[1742297293126,0.05400667,124.32,124.3,21.3913229]
[1742297294235,0.05400667,124.32,124.31,8.045]
[1742297294737,0.05400667,124.32,124.31,21.3910229]
[1742297296833,0.05400667,124.32,124.31,8.045]
[1742297301336,8.09840667,124.32,124.31,8.045]
[1742297302939,0.05400667,124.32,124.31,8.045]
[1742297304339,0.05400667,124.32,124.3,21.3913229]
[1742297305041,8.09890667,124.32,124.3,13.3460229]
[1742297305543,0.05400667,124.32,124.29,0.05888415]
[1742297305837,42.0060229,124.31,124.29,0.05888415]
[1742297306337,13.3460229,124.3,124.29,0.05888415]
[1742297306736,21.3916229,124.3,124.29,0.05888415]
[1742297307938,8.0476,124.27,124.24,8.0494]
[1742297308138,36.7076,124.27,124.24,8.0494]
[1742297308635,8.0485,124.26,124.23,21.3959229]
[1742297308937,8.0485,124.26,124.23,8.10696884]
[1742297309141,8.10897309,124.26,124.23,8.10696884]
[1742297309337,8.0493,124.25,124.23,0.05706884]
[1742297310545,8.10907309,124.26,124.23,8.10716884]
[1742297312451,8.0489,124.25,124.23,0.05706884]
[1742297312749,36.7289,124.25,124.23,0.05706884]
[1742297316445,21.3955229,124.24,124.23,0.05706884]
[1742297321650,8.052,124.21,124.17,278.9060229]
[1742297321856,36.732,124.21,124.17,278.9060229]
[1742297322152,36.732,124.21,124.18,8.0532]
[1742297322452,36.732,124.21,124.17,265.56]
[1742297322453,8.0522,124.2,124.17,265.56]
[1742297322650,8.0522,124.2,124.17,273.6138]
[1742297322856,8.10807582,124.2,124.17,265.61413185]
[1742297323156,0.05587582,124.2,124.17,265.61413185]
[1742297323358,0.05587582,124.2,124.17,278.96015475]
[1742297323756,0.05587582,124.2,124.18,8.0532]
[1742297324258,0.05587582,124.2,124.19,8.0528]
[1742297325255,0.05587582,124.2,124.19,21.3988229]
[1742297330857,158.71360825,124.32,124.19,28.81668639]
[1742297331057,158.71360825,124.32,124.28,13.3460229]
[1742297331464,151.24520262,124.31,124.28,13.3460229]
[1742297331860,11.19574579,124.3,124.28,13.40464581]
[1742297332068,11.19574579,124.3,124.29,8.0463]
[1742297332462,11.19574579,124.3,124.29,21.3923229]
[1742297332664,0.05345465,124.3,124.29,21.3923229]
[1742297333863,0.05345465,124.3,124.29,13.3460229]
[1742297337470,0.05345465,124.3,124.28,21.45124581]
[1742297337675,0.05345465,124.3,124.28,13.40464581]
[1742297338369,0.05345465,124.3,124.28,21.45124581]
[1742297340673,0.05345465,124.3,124.29,8.0463]
[1742297341267,0.05345465,124.3,124.28,21.45124581]
[1742297345377,0.05345465,124.3,124.29,8.0463]
[1742297346071,0.05345465,124.3,124.28,21.45124581]
[1742297346269,0.05345465,124.3,124.29,13.3460229]
[1742297346468,8.09905465,124.3,124.28,21.45124581]
[1742297346676,0.05345465,124.3,124.28,0.05862291]
[1742297347267,8.09945465,124.3,124.28,0.05862291]
[1742297350581,8.09945465,124.3,124.28,8.10552291]
[1742297352181,8.0463,124.29,124.28,0.05862291]
[1742297352978,0.05345465,124.3,124.28,13.40464581]
[1742297353885,0.05345465,124.3,124.29,8.0463]
[1742297360787,8.09905465,124.3,124.28,8.10532291]
[1742297361988,8.0463,124.29,124.28,0.05862291]
[1742297363291,8.09945465,124.3,124.28,0.05862291]
[1742297364288,0.05345465,124.3,124.28,8.10522291]
[1742297364491,0.05345465,124.3,124.28,0.05862291]
[1742297364888,0.05345465,124.3,124.29,8.0463]
[1742297373197,0.05345465,124.3,124.28,8.10512291]
[1742297373696,0.05345465,124.3,124.28,0.05862291]
[1742297375200,0.05345465,124.3,124.28,8.10552291]
[1742297376992,8.09915465,124.3,124.28,8.10552291]
[1742297381301,8.0463,124.29,124.28,0.05862291]
[1742297382704,36.75935465,124.3,124.28,0.05862291]
[1742297383788,36.75935465,124.3,124.28,8.10532291]
[1742297384503,28.71345465,124.3,124.29,8.0463]
[1742297384694,0.05345465,124.3,124.29,8.0463]
[1742297386302,0.05345465,124.3,124.28,8.10522291]
[1742297386491,0.05345465,124.3,124.28,0.05862291]
[1742297386698,42.05947755,124.3,124.28,0.05862291]
[1742297387005,8.0491,124.25,124.22,72.05117924]
[1742297387299,42.0060229,124.27,124.22,72.05117924]
[1742297387502,36.7083,124.26,124.24,8.0494]
[1742297388104,36.76579899,124.26,124.24,0.05610246]
[1742297388802,36.76579899,124.26,124.24,8.10540246]
[1742297389503,36.76579899,124.26,124.24,0.05610246]
[1742297390696,8.0489,124.25,124.24,0.05610246]
[1742297394211,21.3949229,124.25,124.24,0.05610246]
[1742297395006,8.0517,124.21,124.19,17.7255229]
[1742297396104,8.0517,124.21,124.19,17.78307376]
[1742297396305,8.10301203,124.21,124.19,17.78307376]
[1742297396803,8.10301203,124.21,124.19,25.83587376]
[1742297397008,0.05131203,124.21,124.19,25.83587376]
[1742297400208,0.05131203,124.21,124.19,23.65477376]
[1742297400414,0.05131203,124.21,124.19,10.30875086]
[1742297400617,0.05131203,124.21,124.2,8.0521]
[1742297402209,0.05131203,124.21,124.19,10.30835086]
[1742297402411,8.10281203,124.21,124.19,10.30835086]
[1742297402912,0.05131203,124.21,124.19,10.30835086]
[1742297404013,8.10281203,124.21,124.19,10.30835086]
[1742297404608,8.10281203,124.21,124.19,8.10995086]
[1742297405415,36.76281203,124.21,124.19,0.05755086]
[1742297405721,8.0521,124.2,124.19,0.05755086]
[1742297406017,21.3981229,124.2,124.19,0.05755086]
[1742297407420,8.0521,124.2,124.19,0.05755086]
[1742297407719,36.76311203,124.21,124.19,0.05755086]
[1742297407914,28.71131203,124.21,124.19,0.05755086]
[1742297408313,36.76301203,124.21,124.19,0.05755086]
[1742297408622,28.71131203,124.21,124.19,0.05755086]
[1742297409009,28.71131203,124.21,124.2,8.0521]
[1742297409414,28.71131203,124.21,124.19,0.05755086]
[1742297409618,28.71131203,124.21,124.19,8.10995086]
[1742297410121,36.76311203,124.21,124.19,0.05755086]
[1742297411623,8.0521,124.2,124.19,0.05755086]
[1742297412423,28.71131203,124.21,124.19,0.05755086]
[1742297412826,8.0521,124.2,124.19,0.05755086]
[1742297413026,28.71131203,124.21,124.19,0.05755086]
[1742297413326,36.76321203,124.21,124.19,8.11005086]
[1742297413622,28.71131203,124.21,124.19,0.05755086]
[1742297414014,36.76321203,124.21,124.19,8.11005086]
[1742297414215,28.71131203,124.21,124.19,0.05755086]
[1742297415427,36.76281203,124.21,124.19,8.10975086]
[1742297415626,28.71131203,124.21,124.19,0.05755086]
[1742297416531,28.71131203,124.21,124.2,8.0521]
[1742297416718,0.05131203,124.21,124.2,21.3981229]
[1742297417120,0.05131203,124.21,124.2,8.0521]
[1742297420126,0.05131203,124.21,124.19,13.40357376]
[1742297422027,0.05131203,124.21,124.2,8.0521]
[1742297423031,8.10281203,124.21,124.19,8.11015086]
[1742297423527,0.05131203,124.21,124.2,8.0521]
[1742297423729,0.05131203,124.21,124.19,0.05755086]
[1742297424229,0.05131203,124.21,124.2,8.0521]
[1742297426532,11.14229114,124.27,124.2,50.0660229]
[1742297426728,11.14229114,124.27,124.24,13.3460229]
[1742297426927,11.14229114,124.27,124.24,21.3952229]
[1742297427126,11.14229114,124.27,124.24,13.3460229]
[1742297427424,11.19871714,124.27,124.24,13.40649038]
[1742297427828,11.19871714,124.27,124.25,8.0486]
[1742297428430,11.19871714,124.27,124.25,13.3460229]
[1742297428628,11.19871714,124.27,124.26,13.3460229]
[1742297429228,11.19871714,124.27,124.26,21.3942229]
[1742297429829,0.056426,124.27,124.26,21.3942229]
[1742297431236,73.22916458,124.31,124.3,8.0456]
[1742297431628,73.22916458,124.31,124.28,13.3460229]
[1742297432431,73.28852583,124.31,124.29,8.046]
[1742297433430,28.71936125,124.31,124.28,13.39748051]
[1742297435638,36.76436125,124.31,124.28,13.39748051]
[1742297436533,8.10436125,124.31,124.28,13.39748051]
[1742297437933,13.40538415,124.31,124.28,0.05145761]
[1742297440124,0.05936125,124.31,124.29,13.3460229]
[1742297440735,8.10456125,124.31,124.29,13.3460229]
[1742297441733,8.10456125,124.31,124.28,13.39748051]
[1742297443440,8.10456125,124.31,124.28,21.44438051]
[1742297443642,8.0457,124.3,124.28,21.44438051]
[1742297443936,8.0457,124.3,124.28,13.39748051]
[1742297444342,8.0463,124.29,124.28,0.05145761]
[1742297449052,36.6857,124.3,124.28,0.05145761]
[1742297449240,8.0457,124.3,124.28,0.05145761]
[1742297449445,0.05936125,124.31,124.28,21.44408051]
[1742297449645,8.10476125,124.31,124.28,21.44408051]
[1742297450043,0.05936125,124.31,124.28,21.44408051]
[1742297450445,8.0457,124.3,124.28,21.44408051]
[1742297453849,0.05936125,124.31,124.28,13.39748051]
[1742297454444,8.10436125,124.31,124.29,8.046]
[1742297454645,0.05936125,124.31,124.29,13.3460229]
[1742297456055,0.05936125,124.31,124.3,8.0456]
[1742297458554,0.05936125,124.31,124.29,50.0319229]
[1742297458750,0.05936125,124.31,124.28,2.13995761]
[1742297458955,0.05936125,124.31,124.28,0.05145761]
[1742297459154,8.0456,124.3,124.28,8.09805761]
[1742297461360,8.0463,124.29,124.28,0.05145761]
[1742297462059,50.0323229,124.29,124.28,0.05145761]
[1742297463258,8.0494,124.25,124.23,273.7298]
[1742297463459,28.64,124.26,124.23,265.68]
[1742297463655,41.9860229,124.26,124.23,265.68]
[1742297463856,8.0489,124.25,124.23,265.68]
[1742297464262,41.9860229,124.26,124.23,265.68]
[1742297464463,0.05908378,124.25,124.23,273.79064645]
[1742297465759,0.05908378,124.25,124.24,21.3955229]
[1742297466259,28.64,124.28,124.27,8.0476]
[1742297466849,36.6859,124.3,124.27,8.0475]
[1742297467259,8.0465,124.29,124.27,8.0475]
[1742297467458,42.04402967,124.3,124.27,0.05241235]
[1742297467656,13.3460229,124.29,124.27,0.05241235]
[1742297468065,13.3460229,124.29,124.27,8.10001235]
[1742297468262,13.3460229,124.29,124.27,0.05241235]
[1742297469257,8.0467,124.29,124.27,8.10001235]
[1742297472663,36.6867,124.29,124.27,8.10001235]
[1742297474363,28.64,124.29,124.28,8.0469]
[1742297475770,8.10370677,124.3,124.28,8.0469]
[1742297475971,36.74370677,124.3,124.28,8.0469]
[1742297476270,28.69800677,124.3,124.28,8.0469]
[1742297476464,28.69800677,124.3,124.27,0.05241235]
[1742297477071,36.74370677,124.3,124.28,8.0467]
[1742297477270,36.74370677,124.3,124.27,0.05241235]
[1742297477471,28.69800677,124.3,124.27,0.05241235]
[1742297477672,8.0467,124.29,124.27,0.05241235]
[1742297478373,8.0467,124.29,124.27,8.09991235]
[1742297478773,8.0467,124.29,124.27,0.05241235]
[1742297479473,8.0469,124.28,124.27,0.05241235]
[1742297479672,28.69800677,124.3,124.27,8.09991235]
[1742297480577,8.0466,124.29,124.27,0.05241235]
[1742297480876,42.04402967,124.3,124.27,0.05241235]
[1742297481069,8.0463,124.29,124.27,0.05241235]
[1742297481574,8.0469,124.28,124.27,0.05241235]
[1742297483475,50.0329229,124.28,124.27,0.05241235]
[1742297484976,36.6869,124.28,124.27,0.05241235]
[1742297491078,28.64,124.28,124.27,0.05241235]
[1742297491989,36.6866,124.29,124.27,0.05241235]
[1742297492383,8.0466,124.29,124.27,8.10001235]
[1742297492684,36.74400677,124.3,124.27,8.10001235]
[1742297492986,36.74400677,124.3,124.27,8.09961235]
[1742297494294,36.74400677,124.3,124.28,8.0468]
[1742297494788,8.0463,124.29,124.27,8.09961235]
[1742297501495,8.0469,124.28,124.27,0.05241235]
[1742297501994,8.0467,124.29,124.27,8.10001235]
[1742297502194,28.69800677,124.3,124.27,0.05241235]
[1742297503102,8.0469,124.28,124.27,0.05241235]
[1742297503795,8.0469,124.28,124.27,8.10001235]
[1742297503997,8.0466,124.29,124.27,8.10001235]
[1742297507409,8.0469,124.28,124.27,0.05241235]
[1742297508411,8.0467,124.29,124.27,8.09991235]
[1742297508613,28.67800677,124.3,124.27,0.05241235]
[1742297508813,13.3460229,124.29,124.27,0.05241235]
[1742297509313,36.6669,124.28,124.27,0.05241235]
[1742297510908,50.0129229,124.28,124.27,0.05241235]
[1742297511614,36.6669,124.28,124.27,0.05241235]
[1742297513115,28.62,124.28,124.27,0.05241235]
[1742297513604,36.6669,124.28,124.27,0.05241235]
[1742297516012,28.62,124.28,124.27,8.10001235]
[1742297517321,21.3926229,124.29,124.27,8.10001235]
[1742297517520,50.0126229,124.29,124.27,8.10001235]
[1742297520521,0.05800677,124.3,124.28,8.0469]
[1742297521215,0.05800677,124.3,124.27,8.09961235]
[1742297521615,0.05800677,124.3,124.27,0.05241235]
[1742297522125,8.0468,124.29,124.27,0.05241235]
[1742297522315,41.9660229,124.29,124.27,0.05241235]
[1742297523425,8.0469,124.28,124.27,0.05241235]
[1742297531225,41.9660229,124.29,124.2,281.0079229]
[1742297531525,13.3460229,124.24,124.2,296.2819]
[1742297531730,41.9660229,124.24,124.2,296.2819]
[1742297532134,41.9660229,124.24,124.2,267.6619]
[1742297532624,8.10936419,124.23,124.21,0.05368107]
[1742297534630,21.45538709,124.23,124.21,0.05368107]
[1742297536634,21.45538709,124.23,124.21,8.10498107]
[1742297537137,0.05886419,124.23,124.21,8.10498107]
[1742297539636,8.10916419,124.23,124.21,8.10498107]
[1742297540336,8.0508,124.22,124.21,0.05368107]
[1742297541138,21.3968229,124.22,124.21,0.05368107]
[1742297541835,50.0168229,124.22,124.21,0.05368107]
[1742297545141,8.0539,124.18,124.16,265.62]
[1742297545330,8.0539,124.18,124.15,2.029]
[1742297545941,8.0539,124.18,124.16,8.0544]
[1742297546133,8.0539,124.18,124.15,2.029]
[1742297546335,50.0191229,124.19,124.15,2.029]
[1742297546534,0.06160468,124.18,124.17,8.0541]
[1742297551044,0.06160468,124.18,124.16,8.10860805]
[1742297551244,8.11510468,124.18,124.16,8.10860805]
[1742297551540,0.06160468,124.18,124.16,0.05430805]
[1742297551942,28.64,124.17,124.16,0.05430805]
[1742297552141,41.9860229,124.17,124.16,0.05430805]
[1742297552446,50.0401229,124.17,124.16,0.05430805]
[1742297557950,28.64,124.17,124.16,0.05430805]
[1742297558142,28.64,124.17,124.16,8.10870805]
[1742297564547,28.64,124.17,124.16,0.05430805]
[1742297565453,36.6941,124.17,124.16,0.05430805]
[1742297565754,28.64,124.17,124.16,0.05430805]
[1742297566352,36.6941,124.17,124.16,0.05430805]
[1742297587263,50.0401229,124.17,124.1,4.1925]
[1742297587465,13.3460229,124.12,124.1,4.1925]
[1742297587966,8.058,124.11,124.1,4.1925]
[1742297589068,21.45405767,124.12,124.1,4.1925]
[1742297590864,13.39715767,124.12,124.1,12.2502]
[1742297591771,21.45365767,124.12,124.1,4.1925]
[1742297592574,21.45365767,124.12,124.1,12.2502]
[1742297592774,21.45365767,124.12,124.09,0.05625864]
[1742297593175,21.45365767,124.12,124.09,8.11435864]
[1742297593875,21.45365767,124.12,124.1,8.0577]
[1742297594377,21.4032229,124.11,124.09,8.11445864]
[1742297594574,50.0432229,124.11,124.09,8.11445864]
[1742297595178,21.4038229,124.1,124.09,0.05625864]
[1742297599781,13.3460229,124.1,124.09,0.05625864]
[1742297600277,28.69113477,124.12,124.09,0.05625864]
[1742297600475,42.03715767,124.12,124.11,8.0572]
[1742297601680,0.05113477,124.12,124.11,8.0572]
[1742297601980,13.3460229,124.15,124.14,8.0552]
[1742297602379,13.3460229,124.15,124.13,8.0555]
[1742297602885,13.3460229,124.15,124.14,8.0552]
[1742297603077,13.40567952,124.15,124.14,8.0552]
[1742297603278,0.05965662,124.15,124.14,8.0552]
[1742297604982,8.11425662,124.15,124.13,8.11458386]
[1742297605171,0.05965662,124.15,124.13,8.11458386]
[1742297605981,0.05965662,124.15,124.14,8.0552]
[1742297606182,13.40567952,124.15,124.14,8.0552]
[1742297606776,0.05965662,124.15,124.14,8.0552]
[1742297609985,13.40567952,124.15,124.13,0.05888386]
[1742297610575,21.46057952,124.15,124.13,0.05888386]
[1742297611384,8.0552,124.14,124.13,0.05888386]
[1742297612486,21.46057952,124.15,124.13,0.05888386]
[1742297613576,21.46057952,124.15,124.13,8.11468386]
[1742297613780,8.0552,124.14,124.13,0.05888386]
[1742297615684,21.46057952,124.15,124.13,0.05888386]
[1742297615887,21.46057952,124.15,124.13,8.11468386]
[1742297616589,0.05965662,124.15,124.13,8.11468386]
[1742297616891,0.05965662,124.15,124.14,8.0552]
[1742297618295,0.05965662,124.15,124.13,0.05888386]
[1742297618894,13.40567952,124.15,124.13,0.05888386]
[1742297619693,21.46057952,124.15,124.13,0.05888386]
[1742297620999,21.46057952,124.15,124.13,8.11458386]
[1742297621199,13.40567952,124.15,124.13,8.11458386]
[1742297621497,0.05965662,124.15,124.14,8.0552]
[1742297625198,0.05965662,124.15,124.14,36.6752]
[1742297626599,0.05965662,124.15,124.14,50.0212229]
[1742297626903,21.3983229,124.19,124.17,8.0527]
[1742297628001,50.0177229,124.2,124.15,15.5323229]
[1742297628195,0.06118728,124.19,124.17,0.06038011]
[1742297628398,0.06118728,124.19,124.18,8.052]
[1742297632204,0.06118728,124.19,124.17,21.45930301]
[1742297632406,0.06118728,124.19,124.17,8.11328011]
[1742297634008,8.11328728,124.19,124.17,0.06038011]
[1742297635814,8.0526,124.18,124.17,0.06038011]
[1742297636208,0.06118728,124.19,124.17,8.11358011]
[1742297637515,8.11358728,124.19,124.17,8.11358011]
[1742297638114,0.06118728,124.19,124.17,8.11358011]
[1742297638315,0.06118728,124.19,124.18,8.0526]
[1742297640614,0.06118728,124.19,124.17,0.06038011]
[1742297641511,8.0526,124.18,124.17,0.06038011]
[1742297641714,21.3986229,124.18,124.17,0.06038011]
[1742297643017,8.0526,124.18,124.17,0.06038011]
[1742297651025,49.9986229,124.18,124.17,0.06038011]
[1742297657637,41.9460229,124.18,124.11,8.0568]
[1742297657936,13.3460229,124.15,124.11,8.0568]
[1742297658232,8.0556,124.14,124.11,8.0568]
[1742297658732,8.11575316,124.14,124.11,8.1130206]
[1742297658934,8.11575316,124.14,124.12,8.0564]
[1742297659331,8.0559,124.13,124.11,0.0562206]
[1742297659634,0.06015316,124.14,124.11,8.1129206]
[1742297659838,8.11565316,124.14,124.11,0.0562206]
[1742297660231,8.11565316,124.14,124.12,8.0564]
[1742297661136,0.06015316,124.14,124.13,8.0559]
[1742297661335,0.06015316,124.14,124.11,0.0562206]
[1742297661536,8.11535316,124.14,124.12,8.0559]
[1742297662636,0.06015316,124.14,124.13,8.0559]
[1742297665141,0.06015316,124.14,124.12,36.6562]
[1742297665540,0.06015316,124.14,124.12,28.6]
[1742297665736,8.0559,124.13,124.11,21.4589435]
[1742297666641,8.11575316,124.14,124.12,8.0564]
[1742297672948,8.0559,124.13,124.12,8.0564]
[1742297673945,8.0565,124.12,124.11,0.0562206]
[1742297674354,50.0225229,124.12,124.11,0.0562206]
[1742297677745,36.6765,124.12,124.11,0.0562206]
[1742297680351,50.0225229,124.12,124.11,0.0562206]
[1742297688855,8.0593,124.08,124.04,28.62]
[1742297689153,13.3460229,124.08,124.03,13.3460229]
[1742297689361,13.3460229,124.08,124.04,8.0614]
[1742297689560,13.3460229,124.08,124.03,13.3460229]
[1742297689963,8.11770065,124.07,124.05,8.0608]
[1742297690763,0.05770065,124.07,124.05,8.0608]
[1742297691763,8.11780065,124.07,124.05,8.0608]
[1742297693460,0.05770065,124.07,124.04,0.05361388]
[1742297693662,0.05770065,124.07,124.04,32.86971388]
[1742297693866,0.05770065,124.07,124.04,34.94671388]
[1742297694059,0.05770065,124.07,124.06,8.0604]
[1742297695376,0.05770065,124.07,124.05,8.0607]
[1742297697084,8.11760065,124.07,124.05,8.0607]
[1742297697477,8.0608,124.06,124.04,8.11501388]
[1742297697782,8.0608,124.06,124.04,0.05361388]
[1742297698479,28.67770065,124.07,124.04,0.05361388]
[1742297699483,8.0611,124.05,124.04,0.05361388]
[1742297701283,36.6811,124.05,124.04,0.05361388]
[1742297701582,50.0260229,124.05,123.95,19.7638229]
[1742297701780,13.3460229,124.01,123.95,19.7638229]
[1742297701978,41.9660229,124.01,123.95,19.7638229]
[1742297702181,41.9660229,124.01,123.97,13.3460229]
[1742297702383,41.9660229,124.01,123.98,8.0652]
[1742297702686,0.05666644,124.0,123.98,0.0547722]
[1742297703083,8.0653,123.99,123.98,0.0547722]
[1742297703276,21.4113229,123.99,123.98,0.0547722]
[1742297703685,50.0313229,123.99,123.98,0.0547722]
[1742297704180,41.9660229,123.99,123.98,0.0547722]
[1742297704386,28.62,123.99,123.98,0.0547722]
[1742297704585,0.05666644,124.0,123.98,0.0547722]
[1742297704792,0.05666644,124.0,123.99,21.4110229]
[1742297704983,28.62,124.04,123.98,28.6747722]
[1742297705180,36.6822,124.04,123.99,13.3460229]
[1742297705485,28.62,124.04,123.99,13.3460229]
[1742297705688,28.62,124.04,124.01,8.0635]
[1742297705883,13.3460229,124.03,124.01,8.0635]
[1742297706081,13.3460229,124.03,124.01,8.11464915]
[1742297706488,28.67254756,124.04,124.01,0.05114915]
[1742297706781,0.05254756,124.04,124.01,13.39717205]
[1742297707378,0.05254756,124.04,124.03,8.0624]
[1742297707583,0.05254756,124.04,124.03,21.4084229]
[1742297708689,92.44903384,124.09,124.03,13.3460229]
[1742297708877,92.44903384,124.09,124.05,13.3460229]
[1742297709077,92.44903384,124.09,124.08,8.0591]
[1742297709485,41.9660229,124.1,124.05,41.9660229]
[1742297709884,0.05822161,124.09,124.06,0.05868587]
[1742297710687,0.05822161,124.09,124.07,8.0598]
[1742297711188,0.05822161,124.09,124.06,0.05868587]
[1742297711488,0.05822161,124.09,124.06,8.11878587]
[1742297711883,0.05822161,124.09,124.06,0.05868587]
[1742297712289,13.40424451,124.09,124.06,0.05868587]
[1742297712791,13.3460229,124.08,124.06,0.05868587]
[1742297713591,8.0598,124.07,124.06,0.05868587]
[1742297713986,28.62,124.08,124.06,0.05868587]
[1742297714188,8.0598,124.07,124.06,0.05868587]
[1742297716994,50.0254229,124.08,124.06,0.05868587]
[1742297718497,8.11692161,124.09,124.06,0.05868587]
[1742297719197,0.05822161,124.09,124.06,28.67868587]
[1742297720896,8.0595,124.08,124.06,28.67868587]
[1742297721600,8.0595,124.08,124.06,0.05868587]
[1742297721793,8.0595,124.08,124.06,8.11898587]
[1742297721993,36.73702161,124.09,124.06,8.11898587]
[1742297722196,0.05822161,124.09,124.06,28.67868587]
[1742297722398,0.05822161,124.09,124.07,8.0598]
[1742297722597,0.05822161,124.09,124.06,28.67868587]
[1742297722905,0.05822161,124.09,124.08,8.0591]
[1742297725104,0.05822161,124.09,124.07,8.0594]
[1742297726203,0.05822161,124.09,124.08,8.0591]
[1742297726602,0.05822161,124.09,124.06,51.87708183]
[1742297727298,0.05822161,124.09,124.06,0.05868587]
[1742297727695,21.10441757,124.09,124.06,0.05868587]
[1742297727899,49.72441757,124.09,124.06,0.05868587]
[1742297729506,8.0598,124.07,124.06,0.05868587]
[1742297733904,28.67822161,124.09,124.06,0.05868587]
[1742297734205,28.67822161,124.09,124.06,28.67868587]
[1742297734206,0.05822161,124.09,124.06,28.67868587]
[1742297735206,0.05822161,124.09,124.07,8.0594]
[1742297735508,0.05822161,124.09,124.06,49.72488183]
[1742297735705,0.05822161,124.09,124.07,2.1923]
[1742297736002,0.05822161,124.09,124.08,28.62]
[1742297736908,0.05822161,124.09,124.08,36.6791]
[1742297739207,0.05822161,124.09,124.08,50.1425547]
[1742297740210,2.161e-05,124.09,124.08,50.1425547]
[1742297741511,2.161e-05,124.09,124.08,42.0834547]
[1742297743917,2.161e-05,124.09,124.08,50.1425547]
[1742297749319,22.57234,124.12,124.11,8.0572]
[1742297749515,22.57234,124.12,124.11,21.5206547]
[1742297752220,19.24324,124.12,124.11,21.5206547]
[1742297764025,0.05190807,124.13,124.12,8.0565]
[1742297764225,0.05190807,124.13,124.12,50.1199547]
[1742297764425,2.1332,124.19,124.16,8.0538]
[1742297764624,8.0521,124.19,124.17,13.4634547]
[1742297764822,42.0634547,124.21,124.17,13.4634547]
[1742297765023,8.0503,124.22,124.18,13.4634547]
[1742297765421,46.2183547,124.23,124.18,13.4634547]
[1742297765732,8.1044907,124.21,124.19,0.05796672]
[1742297767025,8.0513,124.2,124.19,0.05796672]
[1742297767227,21.5147547,124.2,124.19,0.05796672]
[1742297767729,8.0513,124.2,124.19,0.05796672]
[1742297770930,28.6535907,124.21,124.19,0.05796672]
[1742297771127,0.0535907,124.21,124.19,0.05796672]
[1742297771630,8.0513,124.2,124.19,0.05796672]
[1742297778237,0.0535907,124.21,124.19,8.10996672]
[1742297778238,8.1045907,124.21,124.19,8.10996672]
[1742297778536,0.0535907,124.21,124.19,0.05796672]
[1742297778736,8.0513,124.2,124.19,0.05796672]
[1742297785442,21.5147547,124.2,124.19,0.05796672]
[1742297787349,8.0552,124.14,124.13,265.84]
[1742297787745,8.0552,124.14,124.12,50.0996547]
[1742297788338,8.0552,124.14,124.12,21.5196547]
[1742297788540,8.0552,124.14,124.12,42.0434547]
[1742297788743,0.05834579,124.14,124.12,0.06089852]
[1742297789548,8.11394579,124.14,124.12,8.11729852]
[1742297790450,0.05834579,124.14,124.12,0.06089852]
[1742297791251,8.0559,124.13,124.12,0.06089852]
[1742297791448,0.05834579,124.14,124.12,0.06089852]
[1742297792154,8.11404579,124.14,124.12,0.06089852]
[1742297792652,8.0559,124.13,124.12,0.06089852]
[1742297793153,0.05834579,124.14,124.12,0.06089852]
[1742297793455,8.11384579,124.14,124.12,8.11709852]
[1742297794359,8.11384579,124.14,124.12,0.06089852]
[1742297795549,8.11384579,124.14,124.12,8.11739852]
[1742297796358,8.0559,124.13,124.12,0.06089852]
[1742297797363,8.11394579,124.14,124.12,0.06089852]
[1742297797652,0.05834579,124.14,124.12,0.06089852]
[1742297798250,0.05834579,124.14,124.13,8.0559]
[1742297798456,0.05834579,124.14,124.12,0.06089852]
[1742297798758,8.11364579,124.14,124.12,8.11699852]
[1742297801457,0.05834579,124.14,124.12,8.11699852]
[1742297802558,0.05834579,124.14,124.13,8.0559]
[1742297805859,0.05834579,124.14,124.13,21.5193547]
[1742297806459,13.4634547,124.19,124.15,8.0539]
[1742297806855,8.0527,124.18,124.15,8.0539]
[1742297807257,13.4634547,124.19,124.15,8.0539]
[1742297807459,8.0527,124.18,124.15,8.0539]
[1742297807653,8.10521447,124.18,124.16,0.06106596]
[1742297808463,8.0533,124.17,124.16,0.06106596]
[1742297811559,36.68541447,124.18,124.16,0.06106596]
[1742297811755,36.68541447,124.18,124.16,8.11486596]